Cogmind - Beta 12 @@@ ROGUE MODE // 2023.04.10 @ 23:52:14 Player: Hekatonkheires Result: Destroyed by D-53 Grenadier with Mini Grenade Launcher Performance ------------- Evolutions (0) 0 Regions Visited (2) 400 Robots Destroyed (17) 85 Value Destroyed (323) 323 Prototype IDs (0) 0 Alien Tech Used (0) 0 Bonus (0) 0 TOTAL SCORE: 808 Bonus ------- None Cogmind --------- Core Integrity 0/250 Matter 239/300 Energy 53/100 System Corruption 0% Temperature Cool (0) Movement Core (50) Location -10/Mines Parts ------- > --- POWER (1) -------- (None) > --- PROPULSION (2) --- (None) > --- UTILITY (2) ------ (None) > --- WEAPON (2) ------- (None) > --- INVENTORY (5) ---- Light Ion Engine Large Storage Unit Small Laser Peak State ------------ > --- POWER ------------ Ion Engine > --- PROPULSION ------- Wheel Wheel > --- UTILITY ---------- Huge Storage Unit Improved Terrain Scanner > --- WEAPON ----------- Medium Laser Assault Rifle > --- INVENTORY -------- Light Ion Engine Light Treads Light Treads Aluminum Leg Wheel Wheel Small Storage Unit Medium Laser Small Laser Grenade Launcher [Rating: 10] Favorites ----------- Power Ion Engine Engine Ion Engine Propulsion Wheel Treads Light Treads Wheel Wheel Utility Huge Storage Unit Device Improved Terrain Scanner Storage Huge Storage Unit Protection Light Armor Plating Weapon Medium Laser Energy Gun Medium Laser Ballistic Gun Assault Rifle Launcher Grenade Launcher Build | -11 -10 -10 ------- Run | Jun Mat Min Slots Evolved . | . . . Power . | . . . Propulsion . | . . . Utility . | . . . Weapon . | . . . Parts Attached 29 | 8 13 8 Power 1 | 1 . . Engine 1 | 1 . . Core . | . . . Reactor . | . . . Propulsion 10 | 2 6 2 Treads 4 | 2 2 . Leg . | . . . Wheel 6 | . 4 2 Hover . | . . . Flight . | . . . Utility 6 | 2 3 1 Device 1 | 1 . . Storage 2 | 1 1 . Processor . | . . . Hackware . | . . . Protection 3 | . 2 1 Artifact . | . . . Weapon 12 | 3 4 5 Energy Gun 6 | 2 2 2 Energy Cannon . | . . . Ballistic Gun 3 | 1 . 2 Ballistic Cannon . | . . . Launcher 3 | . 2 1 Special Weapon . | . . . Impact Weapon . | . . . Slashing Weapon . | . . . Piercing Weapon . | . . . Special Melee Weapon . | . . . Unidentified Prototypes . | . . . Parts Lost 10 | . 1 9 Power 1 | . . 1 Propulsion 3 | . 1 2 Utility 2 | . . 2 Weapon 4 | . . 4 Highest Loss Streak 10 | . 1 10 To Critical Strikes . | . . . Average Slot Usage (%) 95 | . 99 33 Engine 13 | . 14 4 Treads 3 | . 3 . Wheel 22 | . 24 7 Device 4 | . 5 . Storage 13 | . 14 4 Protection 8 | . 8 7 Energy Gun 18 | . 19 7 Ballistic Gun 6 | . 6 . Launcher 1 | . 1 2 Naked Turns 14 | . . 14 Heaviest Build 93 | 15 93 93 Greatest Support 40 | 40 40 20 Greatest Overweight (x) 9 | . 9 9 Average Overweight (x) 2 | . 3 . Largest Inventory Capacity 25 | 8 25 25 Average Capacity 20 | 7 23 13 Most Carried 16 | 8 16 15 Average Carried 11 | 4 13 8 Final Capacity 25 | 8 25 5 Final Carried 16 | 8 16 3 Class Distribution -------------------- 100% | Mutant Dominant Class ---------------- Mutant | -10/Materials Mutant | -10/Mines Resources | -11 -10 -10 ----------- Run | Jun Mat Min Matter Collected 554 | 292 245 17 Remotely . | . . . Salvage Created 419 | 85 310 24 Parts 30 | 14 11 5 Haulers Intercepted 1 | . 1 . Recyclers Shooed . | . . . Parts Field Recycled . | . . . Retrieved Matter . | . . . Parts Self-Destructed . | . . . Prevented . | . . . Kills | -11 -10 -10 ------- Run | Jun Mat Min Combat Hostiles Destroyed 11 | . 9 2 Guns 7 | . 6 1 AOE 4 | . 3 1 Classes Destroyed 5 | 1 4 . Tunneler 4 | 4 . . Hauler 1 | . 1 . Watcher 1 | . 1 . Swarmer 5 | . 3 2 Grunt 6 | . 6 . Best Kill Streak 3 | 3 3 1 Combat Bots Only 2 | . 2 1 Max Kills in Single Turn 1 | 1 1 1 Gunslinging . | . . . Exploded 1 | . 1 1 Melee . | . . . Uniques/NPCs Destroyed . | . . . Combat | -11 -10 -10 -------- Run | Jun Mat Min Damage Taken 1129 | . 553 576 Core 266 | . 94 172 Absorbed by Shields . | . . . Regen/Repaired (Parts) 73 | . 73 . Core Remaining (%) 100 | 100 . . Volleys Fired 53 | 4 44 5 Largest 2 | 2 2 2 Hottest 100 | 70 100 60 Shots Fired 94 | 8 80 6 Gun 86 | 8 76 2 Cannon . | . . . Launcher 8 | . 4 4 Special . | . . . Kinetic 31 | 4 26 1 Thermal 55 | 4 50 1 Explosive 8 | . 4 4 Electromagnetic . | . . . Robot Hit Streak 6 | 3 6 1 Robot Miss Streak 3 | 1 2 3 Penetration Max . | . . . Secondary Targets 1 | . 1 . Max Gunslinging Chain 1 | . 1 . Shots Hit Robots 56 | 4 51 1 Core Hits 26 | 4 20 2 Critical Kills . | . . . Critical Parts Destroyed . | . . . Critical Strikes 8 | . 8 . Burn 8 | . 8 . Melee Attacks . | . . . Impact . | . . . Slashing . | . . . Piercing . | . . . Sneak Attacks . | . . . Combat Hostiles . | . . . Follow-up Attacks . | . . . Damage Inflicted 1039 | 49 915 75 Guns 706 | 49 643 14 Cannons . | . . . Explosions 324 | . 263 61 Melee . | . . . Ramming 9 | . 9 . Kinetic 223 | 12 197 14 Thermal 483 | 37 446 . Explosive 324 | . 263 61 Electromagnetic . | . . . Impact . | . . . Slashing . | . . . Piercing . | . . . Highest Corruption . | . . . Average Corruption . | . . . Corruption Purged . | . . . Corruption Blocked . | . . . Overload Shots . | . . . Overflow Damage 5 | . 5 . Projectiles . | . . . Explosions 5 | . 5 . Melee . | . . . Knockbacks . | . . . Impact . | . . . Kinetic . | . . . Secondary . | . . . Self-Inflicted Damage 52 | . 38 14 Shots 3 | . 2 1 Rammed 1 | . 1 . Targets Rammed 1 | . 1 . Kicked . | . . . Crushed . | . . . Highest Temperature 324 | 27 324 . Average Temperature 106 | 12 113 . Received Heat Transfer 261 | . 261 . Effects 4 | . 4 . Energy Bleed 2 | . 2 . Interference 2 | . 2 . Siege Activations . | . . . Robots Corrupted . | . . . Combat Hostiles . | . . . Parts Fried . | . . . Impact Corruptions . | . . . Robots Melted . | . . . Combat Hostiles . | . . . Parts Melted 7 | . 7 . Heat Transferred 2035 | 111 1924 . Parts Sabotaged . | . . . Parts Stolen . | . . . Parts Stripped . | . . . Power Chain Reactions . | . . . Missiles Intercepted . | . . . Alert | -11 -10 -10 ------- Run | Jun Mat Min Peak Influence 267 | 20 267 115 Initial 61 | . 13 61 Average 100 | 8 119 68 Maximum Alert Level 1 | . 1 . Low Security (%) 76 | 100 70 100 Level 1 23 | . 29 . Level 2 . | . . . Level 3 . | . . . Level 4 . | . . . Level 5 . | . . . High Security . | . . . Max Security . | . . . Squads Dispatched 2 | . 2 . Investigation . | . . . Extermination . | . . . Reinforcement 2 | . 2 . Assault . | . . . Garrison . | . . . Intercept . | . . . Searches Triggered . | . . . Construction Impeded . | . . . Haulers Reinforced . | . . . Active Scanning Responses . | . . . Cargo Convoy Interrupts . | . . . Stealth | -11 -10 -10 --------- Run | Jun Mat Min Distress Signals 3 | . 3 . Communications Jammed . | . . . Distress Signals . | . . . Times Spotted 38 | . 21 17 Peak Tracking Total 14 | . 6 14 Tactical Retreats 4 | . 3 1 Traps | -11 -10 -10 ------- Run | Jun Mat Min Traps Triggered . | . . . Indirectly . | . . . Trap Hack Attempts . | . . . Triggered . | . . . Disarmed . | . . . Reprogrammed . | . . . Reused . | . . . Traps Extracted . | . . . Installed . | . . . Triggered . | . . . Machines | -11 -10 -10 ---------- Run | Jun Mat Min Machines Disabled 1 | . 1 . Max in Single Turn 1 | . 1 . Machines Repaired . | . . . Machines Sabotaged . | . . . Overloaded Fab Kills . | . . . Hacking | -11 -10 -10 --------- Run | Jun Mat Min Machines Accessed 2 | . 2 . Terminals 1 | . 1 . Fabricators . | . . . Repair Stations 1 | . 1 . Recycling Units . | . . . Scanalyzers . | . . . Garrison Access . | . . . Total Hacks 3 | . 3 . Successful 2 | . 2 . Failed 1 | . 1 . Catastrophic . | . . . Database Lockouts . | . . . Manual 1 | . 1 . Terminals 1 | . 1 . Fabricators . | . . . Repair Stations 2 | . 2 . Recycling Units . | . . . Scanalyzers . | . . . Garrison Access . | . . . Terminal Hacks . | . . . Fabricator Hacks . | . . . Repair Station Hacks 2 | . 2 . Scan Component 1 | . 1 . Repair 1 | . 1 . Recycling Unit Hacks . | . . . Scanalyzer . | . . . Garrison Access Hacks . | . . . Unauthorized Hacks . | . . . Terminals . | . . . Fabricators . | . . . Repair Stations . | . . . Recycling Units . | . . . Scanalyzers . | . . . Garrison Access . | . . . Data Cores Recovered . | . . . Used . | . . . Hacking Detections 2 | . 2 . Full Trace Events . | . . . Feedback Events . | . . . Feedback Blocked . | . . . Robot Schematics Acquired . | . . . Robots Built . | . . . Authchips . | . . . Time . | . . . Total Robot Build Rating . | . . . Part Schematics Acquired . | . . . Parts Built . | . . . Authchips . | . . . Time . | . . . Total Part Build Rating . | . . . Parts Repaired 1 | . 1 . Time 26 | . 26 . Parts Recycled . | . . . Recycled Matter . | . . . Retrieved Matter . | . . . Retrieved Components . | . . . Parts Scanalyzed . | . . . Part Schematics Acquired . | . . . Parts Damaged . | . . . Bothacking | -11 -10 -10 ------------ Run | Jun Mat Min Used RIF Installer . | . . . Robots Hacked . | . . . Non-combat . | . . . Combat . | . . . Robot Hacks Applied . | . . . Relay Couplers Released . | . . . Fabnet Peak Effective % . | . . . Robots Rewired . | . . . Allies Hacked . | . . . Hacks Repelled . | . . . Allies | -11 -10 -10 -------- Run | Jun Mat Min Total Allies . | . . . Largest Group . | . . . Highest-Rated Group . | . . . Highest-Rated Ally . | . . . Total Orders . | . . . Ally Attacks . | . . . Total Damage . | . . . Kills . | . . . Allies Corrupted . | . . . Allies Melted . | . . . Intel | -11 -10 -10 ------- Run | Jun Mat Min Robot Analysis Total . | . . . Derelict Logs Recovered . | . . . Drone Launches . | . . . Drone Recoveries . | . . . Exploration | -11 -10 -10 ------------- Run | Jun Mat Min Turns Passed 1109 | 165 884 60 Spaces Moved 604 | 89 458 57 Core 59 | 8 . 51 Treads 129 | 81 48 . Legs . | . . . Wheels 416 | . 410 6 Hover . | . . . Flight . | . . . Fastest Speed 50 | 50 140 50 Average Speed 136 | 150 142 65 Slowest Speed 320 | 160 320 215 Overloaded Moves . | . . . Propulsion Burnouts . | . . . Robots Hopped . | . . . Cave-ins Triggered . | . . . Exploration Rate (%) 32 | 5 58 33 Regions Visited 2 Branch Regions 1 Pre-discovered Areas . | . . . Known Exits Taken . | . . . Unknown Exits Taken 2 | 1 1 . Scrap Searched 1 | . . 1 Spaces Dug . | . . . Terrain Destroyed 52 | . 33 19 Melee . | . . . Projectile . | . . . AOE 52 | . 33 19 Terrain Rammed . | . . . Walls Destroyed . | . . . Machines Disabled . | . . . Actions | -11 -10 -10 --------- Run | Jun Mat Min Total 788 | 110 604 74 Wait 78 | . 78 . Move 602 | 88 457 57 Hop . | . . . Pick Up 18 | 9 9 . Fast Attach 9 | 7 1 1 Attach 7 | 1 . 6 Detach 2 | . . 2 Swap 13 | . 12 1 Drop 5 | 1 2 2 Fire 53 | 4 44 5 Melee . | . . . Ram 1 | . 1 . Kick . | . . . Crush . | . . . Escape Stasis . | . . . Rewire . | . . . Trap . | . . . Miscellaneous . | . . . Route ------- -11/Junkyard -10/Materials (discovered 3 exits: [*Mat x2] / [*Min]) -10/Mines History --------- Turn | Location | Event 10 | -11/Junkyard | Discovered new exit (range 14) 166 | -11/Junkyard | Entered Materials 166 | -10/Materials | Discovered new exit (range 16) 289 | -10/Materials | Discovered new exit (range 14) 305 | -10/Materials | Build established: Mutant 710 | -10/Materials | Discovered new exit (range 7) 752 | -10/Materials | Repaired Lgt. Armor Plating 1050 | -10/Materials | Entered Mines 1051 | -10/Mines | Assembled infested the area 1072 | -10/Mines | Core integrity fell below 50% 1079 | -10/Mines | Core integrity fell below 20% 1110 | -10/Mines | Destroyed by D-53 Grenadier with Mini Grenade Launcher Last Messages --------------- 01074_ Dropped Huge Storage Unit. 01074_ Med. Laser destroyed. 01075_ U-05 Engineer lays Concrete. 01077_ U-05 Engineer builds a Wall. 01078_ R-06 Scavenger collects Lrg. Storage Unit. 01079_ The unstable cave ceiling collapses. 01080_ K-01 Serf collects debris. 01081_ R-06 Scavenger collects Lgt. Treads. 01082_ U-05 Engineer lays Concrete. 01084_ U-05 Engineer builds a Wall. 01085_ Searching scrap... 01085_ Found Lgt. Treads. 01085_ Found Lgt. Armor Plating. 01085_ Found 17 Matter. 01086_ Acquired 17 matter. 01086_ Acquired Lgt. Armor Plating. 01092_ S-10 Pest destroyed. 01098_ Assault Rifle destroyed. 01098_ Dropped Wheel. 01108_ Lgt. Armor Plating destroyed. Map ----- +----------------------------------------------------+ | ?????????????????????????????????????? | | ?????????????????????????????????????? | | ?????????????????????????????????????? | | ?????????????????????????????????????? | | ?????????????????????????????????????? | | ?????????????????????????????????????? | | ?????????????????????????????????????? | | ?????????????????????????????????????? | | ?????????????????????????????????????? | | ?????????????????????????????????????? | | ?????????????###?????????????????????? | | ????????????? ????????????????????? | | ????????????? ????????????????????? | | ????????????? ????????????????????? | | ????????????? ????????????????????? | | ???????????## ?????????????????????? | | ???????????# ?????????????????????? | | ???????????# ?????????????????????? | | ???????????# ?????????????????????? | | ??????????## ??????????????????????? | | ???????#### ??????????????????????? | | ??????## ??????????????????????? | | ??????# ??????????????????????? | | ??????# #??????????????????????? | | ??????# #?????#######??????????? | | ??????# @###??? #???????#### | | ??????## ###? #???????# | | ???????#### #?# ## ##??????# | | ??????????### ### ## #???#### | | ????????????## # #??## | | ????????????# #?## = | | ????????????## = #?# =% | | ?????????????# ### | | ?????????###?# d # ## | | ????????## # #### # | | ????????# #??# =## | | ????????# ####??#=%## # | | ????????## ## ##?????# =* ## | | ?????????####?###??????# ###? | | ???????????????????????#### ### ##??? | | ??????????????????????????# #?####???? | | ??????????????????????????# #????????? | | ?????????????????????????? #????????? | | ??????????????????????????###????????? | | ?????????????????????????????????????? | | ?????????????????????????????????????? | | ?????????????????????????????????????? | | ?????????????????????????????????????? | | ?????????????????????????????????????? | | ?????????????????????????????????????? | +----------------------------------------------------+ Best States ------------- Heat Dissipation 25 Energy Generation 10 Energy Capacity 250 Matter Stores 300 Matter Capacity 300 Sight Range 16 Terrain Scan Range 16 Terrain Scan Density 10 Armor Coverage 150 Evasion (%) 50 Recoil Reduction 2 Item Schematics ----------------- None Robot Schematics ------------------ None Fabricated ------------ Nothing Alien Tech Used ----------------- None Achievements -------------- None Challenges ------------ None Game ------ Seed VariableDrainedMallet Manual? 0 Play Time 00:16:42 Cumulative 27.6 hours Start 2023.04.10 @ 23:38:23 End 2023.04.10 @ 23:52:14 Sessions 1 Manual Loads 0 Difficulty Rogue Special Mode None Game No. 25 Rogue 25 Adventurer 0 Explorer 0 Win Type - Total 0 Types 0/0/0/0/0/0/0/0/0 Lore% 33 Gallery% 33 Achievement% 28 Wizard Run 0 Options --------- ASCII 0 Keyboard 0 Movement Numpad Keybinds 0 Fullscreen 1 Font 14/SmallcapsGlow Map View 84x54 Tactical HUD 1 Map Filters NONE Filters NONE Steam 1 RUN: d16a7f58-0196-4a83-8655-84738f8947bb